bitfinex/quotes_SOLUSD_20240930
["timestamp","ask_amount","ask_price","bid_price","bid_amount"]
[1727705825697,6.3906,156.48,156.46,0.9038638]
[1727705826299,17.08732265,156.51,156.46,0.9038638]
[1727705826300,6.3901,156.5,156.46,0.9038638]
[1727705827198,7.50282265,156.51,156.46,0.9038638]
[1727705827393,1.11342265,156.51,156.46,1.30936358]
[1727705827701,6.3893,156.51,156.46,0.9038638]
[1727705828293,1.11329563,156.52,156.46,0.9038638]
[1727705828492,7.50229563,156.52,156.46,0.9038638]
[1727705828993,1.11329563,156.52,156.46,0.9038638]
[1727705829194,1.11329563,156.52,156.47,0.40497392]
[1727705829788,1.11329563,156.52,156.49,6.2995]
[1727705830094,11.93587202,156.63,156.5,15.9103]
[1727705830401,11.93587202,156.63,156.51,6.79270915]
[1727705830402,7.49882452,156.59,156.51,6.79270915]
[1727705830699,6.3865,156.58,156.5,22.3]
[1727705831199,7.4988742,156.59,156.5,22.3]
[1727705831383,7.4988742,156.59,156.51,0.40351626]
[1727705831787,6.3866,156.58,156.5,22.3]
[1727705831986,6.3869,156.57,156.5,15.9103]
[1727705832393,1.59697589,156.56,156.5,15.9103]
[1727705832600,7.98437589,156.56,156.5,15.9103]
[1727705833096,6.3874,156.56,156.51,0.40391784]
[1727705833396,1.1127742,156.59,156.51,6.79311784]
[1727705833580,1.1127742,156.59,156.51,6.3892]
[1727705833782,1.1127742,156.59,156.5,15.9103]
[1727705833994,6.3866,156.58,156.5,15.9103]
[1727705834303,6.3866,156.58,156.5,22.2999]
[1727705835300,6.3866,156.58,156.51,0.40361986]
[1727705835600,6.3866,156.58,156.5,22.2999]
[1727705835793,7.4988742,156.59,156.51,6.3893]
[1727705836589,7.98342854,156.58,156.5,22.3]
[1727705837602,6.3882,156.54,156.5,15.9103]
[1727705838105,6.389,156.52,156.5,15.9103]
[1727705838607,6.3885,156.53,156.5,15.9103]
[1727705838773,1.1127742,156.59,156.51,0.40461584]
[1727705838972,6.3874,156.56,156.51,0.40461584]
[1727705839203,1.1127742,156.59,156.5,15.9103]
[1727705839403,6.3878,156.55,156.5,15.9103]
[1727705840280,6.3874,156.56,156.5,15.9103]
[1727705840984,6.3877,156.55,156.5,15.9103]
[1727705841294,7.98532412,156.54,156.5,15.9103]
[1727705841498,1.59728775,156.53,156.5,15.9103]
[1727705841804,6.3893,156.52,156.5,15.9103]
[1727705842001,6.389,156.52,156.5,15.9103]
[1727705842585,15.9687,156.56,156.5,15.9103]
[1727705842795,6.3886,156.53,156.5,15.9103]
[1727705843101,6.388,156.55,156.5,15.9103]
[1727705843480,6.3874,156.56,156.5,15.9103]
[1727705843687,6.3878,156.55,156.5,15.9103]
[1727705844004,6.387,156.57,156.51,0.40413349]
[1727705844405,6.3873,156.56,156.51,0.40413349]
[1727705844701,6.3873,156.56,156.5,15.9103]
[1727705845115,6.3882,156.54,156.5,15.9103]
[1727705846277,7.98610759,156.53,156.5,15.9103]
[1727705846498,6.3888,156.53,156.5,15.9103]
[1727705846702,7.98656002,156.52,156.5,15.9103]
[1727705846909,6.3889,156.53,156.5,15.9103]
[1727705847082,1.59744498,156.52,156.5,15.9103]
[1727705847395,6.3875,156.56,156.51,0.40461415]
[1727705848111,7.78838422,156.59,156.51,0.40461415]
[1727705848291,6.3866,156.58,156.51,6.78781415]
[1727705848894,1.1127742,156.59,156.51,12.7722]
[1727705849395,1.1127742,156.59,156.51,6.3832]
[1727705849591,6.3876,156.56,156.51,6.3832]
[1727705850108,6.3876,156.56,156.52,0.40386894]
[1727705851501,6.387,156.57,156.52,0.40386894]
[1727705853420,1.1127742,156.59,156.53,6.3885]
[1727705853602,1.1127742,156.59,156.55,15.7683]
[1727705853796,6.3857,156.6,156.55,15.7683]
[1727705854320,7.49795765,156.61,156.56,0.40309893]
[1727705854523,1.11265765,156.61,156.56,0.40309893]
[1727705856634,7.98075739,156.63,156.55,31.737]
[1727705856932,1.59635739,156.63,156.55,15.7683]
[1727705857301,6.3857,156.6,156.55,15.7683]
[1727705857702,1.11248538,156.64,156.56,0.40275899]
[1727705857923,6.3848,156.63,156.56,0.40275899]
[1727705858222,6.3848,156.62,156.55,15.7683]
[1727705860006,6.3848,156.62,156.56,0.40242752]
[1727705860510,6.3845,156.63,156.56,0.40242752]
[1727705860819,7.49658538,156.64,156.56,6.78952752]
[1727705861417,1.11248538,156.64,156.57,12.8749]
[1727705861618,1.11248538,156.64,156.58,0.40201398]
[1727705862420,1.11248538,156.64,156.59,15.1435]
[1727705862607,1.11248538,156.64,156.6,0.40171852]
[1727705862927,1.11248538,156.64,156.59,15.1435]
[1727705863127,1.11248538,156.64,156.6,0.401704]
[1727705863424,1.11248538,156.64,156.59,15.1435]
[1727705864423,7.49658538,156.64,156.59,15.1435]
[1727705864631,1.11248538,156.64,156.59,15.1435]
[1727705866505,1.11248538,156.64,156.6,6.78704234]
[1727705866706,6.3825,156.68,156.6,6.78704234]
[1727705867015,6.3825,156.68,156.61,6.3851]
[1727705867209,6.3825,156.68,156.62,0.40089874]
[1727705867403,1.1121461,156.7,156.63,15.2686]
[1727705867622,6.382,156.69,156.64,0.40067938]
[1727705867811,7.4938461,156.7,156.64,6.96267938]
[1727705868221,6.3817,156.7,156.64,6.96267938]
[1727705868629,6.3814,156.71,156.64,6.96267938]
[1727705868929,7.49274338,156.72,156.65,6.3836]
[1727705869228,7.49274338,156.72,156.66,0.39990304]
[1727705870126,7.49274338,156.72,156.67,15.8406]
[1727705870329,7.97668075,156.71,156.67,15.8406]
[1727705870627,1.11194338,156.72,156.69,6.382]
[1727705870805,2.184,156.9,156.7,1.27602449]
[1727705871002,1.1114803,156.79,156.72,6.2598]
[1727705871243,6.66654797,156.83,156.72,7.53580418]
[1727705871413,19.21,156.82,156.72,7.53580418]
[1727705871609,6.3788,156.77,156.72,7.53580418]
[1727705872222,1.59500416,156.76,156.72,6.2598]
[1727705872427,6.3792,156.76,156.72,7.5358285]
[1727705873010,6.3792,156.76,156.72,6.2598]
[1727705873207,1.59503468,156.75,156.71,16.0325]
[1727705873407,6.3805,156.73,156.71,16.0325]
[1727705873623,6.3812,156.71,156.68,6.6012]
[1727705874009,6.3808,156.72,156.68,6.6012]
[1727705874430,15.9504,156.74,156.67,16.3688]
[1727705875113,17.54611914,156.74,156.67,16.3688]
[1727705875911,15.9504,156.74,156.67,16.3688]
[1727705876265,6.3813,156.71,156.67,16.3688]
[1727705877230,1.59562362,156.7,156.67,16.3688]
[1727705877416,15.9504,156.74,156.67,16.3688]
[1727705878754,6.3821,156.69,156.67,16.3688]
[1727705880340,1.59577372,156.68,156.63,15.1607]
[1727705880525,6.384,156.65,156.63,15.1607]
[1727705880725,15.9545,156.7,156.63,15.1607]
[1727705880948,6.3833,156.66,156.63,15.1607]
[1727705882427,6.3829,156.67,156.63,15.1607]
[1727705882746,6.66877753,156.71,156.64,1.27677132]
[1727705883135,15.9515,156.73,156.64,1.27677132]
[1727705883332,6.3815,156.71,156.64,7.66077132]
[1727705883938,6.3809,156.72,156.65,6.3836]
[1727705884135,24.16810587,156.76,156.64,17.23637132]
[1727705884136,6.3805,156.73,156.66,7.65947037]
[1727705884341,6.3805,156.73,156.67,6.1646]
[1727705884631,6.38,156.74,156.68,1.27633753]
[1727705885033,13.16540299,156.78,156.69,15.5739]
[1727705885250,6.3805,156.73,156.69,15.5739]
[1727705885937,6.38,156.74,156.69,15.5739]
[1727705886657,6.38,156.74,156.7,1.2762642]
[1727705886963,6.38,156.74,156.69,15.5739]
[1727705887255,6.3796,156.75,156.69,15.5739]
[1727705887449,6.3796,156.75,156.7,1.27611793]
[1727705887759,6.3792,156.76,156.7,1.27611793]
[1727705889154,17.05683768,156.79,156.7,1.27611793]
[1727705889355,17.05683768,156.79,156.69,15.5739]
[1727705889356,6.3804,156.73,156.69,15.5739]
[1727705890039,1.59524041,156.78,156.69,15.5739]
[1727705890246,6.3801,156.74,156.69,15.5739]
[1727705891154,6.3796,156.75,156.7,1.27622006]
[1727705891657,6.3792,156.76,156.69,21.9559]
[1727705892351,1.59506222,156.75,156.69,15.5739]
[1727705892662,6.38,156.74,156.69,15.5739]
[1727705893353,1.11167001,156.76,156.69,15.5739]
[1727705893654,1.59519201,156.78,156.7,15.9535]
[1727705893866,2.70674245,156.78,156.69,21.9558]
[1727705894158,6.3816,156.7,156.69,15.5739]
[1727705894360,6.3823,156.69,156.63,6.1982]
[1727705895443,7.97813042,156.68,156.63,6.1982]
[1727705895644,7.9787879,156.67,156.63,6.1982]
[1727705895844,1.595925,156.66,156.63,6.1982]
[1727705896053,6.3832,156.66,156.62,15.9103]
[1727705897162,6.3838,156.65,156.62,15.9103]
[1727705898070,6.3833,156.66,156.62,15.9103]
[1727705901370,17.55080427,156.7,156.62,15.9103]
[1727705901371,6.3837,156.65,156.62,15.9103]
[1727705901659,6.384,156.64,156.62,15.9103]
[1727705901861,6.3849,156.62,156.58,16.6297]
[1727705902041,15.9586,156.66,156.58,16.6297]
[1727705902242,1.59652884,156.65,156.58,16.6297]
[1727705902463,6.3859,156.6,156.58,16.6297]
[1727705904271,6.3861,156.59,156.58,16.6297]
[1727705904571,6.3861,156.59,156.55,6.2057]
[1727705904743,1.5967738,156.58,156.55,6.2057]
[1727705904944,6.3873,156.56,156.55,6.2057]
[1727705905541,6.3873,156.56,156.54,16.2544]
[1727705906355,6.3868,156.58,156.54,16.2544]
[1727705906644,6.3861,156.59,156.54,16.2544]
[1727705906850,6.3857,156.6,156.54,17.5318494]
[1727705907366,6.3856,156.61,156.54,23.9198494]
[1727705907770,6.3858,156.6,156.54,17.5318494]
[1727705908351,6.3858,156.6,156.54,16.2544]
[1727705908551,6.3858,156.6,156.55,1.2773566]
[1727705909064,6.3858,156.6,156.54,16.2544]
[1727705910362,6.3858,156.6,156.55,1.27735363]
[1727705910567,6.3853,156.61,156.55,1.27735363]
[1727705911304,17.55608841,156.65,156.54,16.2544]
[1727705911478,6.3861,156.59,156.54,16.2544]
[1727705912477,6.3861,156.59,156.55,1.27747493]
[1727705913182,6.3855,156.61,156.55,1.27747493]
[1727705913478,1.59661697,156.6,156.54,16.2544]
[1727705913795,6.3872,156.57,156.54,16.2544]
[1727705913955,15.9627,156.62,156.54,16.2544]
[1727705914280,6.3861,156.59,156.55,1.27739281]
[1727705914474,6.3857,156.6,156.55,1.27739281]
[1727705914658,17.0678523,156.62,156.55,1.27739281]
[1727705914659,6.3861,156.59,156.55,1.27739281]
[1727705915881,6.3857,156.6,156.55,1.27739281]
[1727705916974,6.3861,156.59,156.54,16.2544]
[1727705918781,6.3861,156.59,156.55,1.27739099]
[1727705919771,1.59673471,156.58,156.54,16.2544]
[1727705920078,6.3873,156.57,156.54,16.2544]
[1727705921085,15.9637,156.61,156.54,16.2544]
[1727705921261,6.3866,156.58,156.54,16.2544]
[1727705921464,1.1051523,156.62,156.55,1.27744895]
[1727705921677,6.3854,156.61,156.55,7.66504895]
[1727705921884,6.3857,156.6,156.55,1.27744895]
[1727705922577,6.3853,156.61,156.55,7.66504895]
[1727705922775,6.3853,156.61,156.55,1.27744895]
[1727705923677,6.3858,156.6,156.55,1.27744895]
[1727705925072,6.3853,156.61,156.55,7.66504895]
[1727705925269,1.1051523,156.62,156.56,6.3872]
[1727705925270,7.4900523,156.62,156.56,6.3872]
[1727705925575,7.4900523,156.62,156.57,1.27716336]
[1727705926261,1.1051523,156.62,156.56,6.6379]
[1727705926466,6.3865,156.58,156.54,16.2544]
[1727705926772,6.3857,156.6,156.55,1.2773377]
[1727705927476,6.3856,156.61,156.55,1.2773377]
[1727705928466,1.1051523,156.62,156.55,1.2773377]
[1727705928671,6.3858,156.6,156.55,1.2773377]
[1727705929685,6.3858,156.6,156.54,22.6422]
[1727705929686,6.3861,156.59,156.54,16.2544]
[1727705930184,6.3865,156.58,156.54,16.2544]
[1727705930760,6.3865,156.58,156.55,1.27738748]
[1727705931190,6.3865,156.58,156.54,16.2544]
[1727705931680,6.386,156.6,156.55,1.27739647]
[1727705932684,6.3853,156.61,156.55,7.66509647]
[1727705933189,6.3853,156.61,156.55,1.27739647]
[1727705933771,6.3857,156.6,156.54,38.612]
[1727705934080,6.3857,156.6,156.56,1.27721124]
[1727705934292,6.3857,156.6,156.54,38.612]
[1727705934476,6.3857,156.6,156.54,32.2242]
[1727705934669,1.1051523,156.62,156.54,32.2242]
[1727705934870,6.3858,156.6,156.55,1.27724392]
[1727705935069,1.1051523,156.62,156.55,1.27724392]
[1727705935269,1.1051523,156.62,156.56,6.3869]
[1727705935488,1.1051523,156.62,156.57,1.27707875]
[1727705935689,7.4900523,156.62,156.57,1.27707875]
[1727705936280,6.3849,156.62,156.57,1.27707875]
[1727705936676,1.10378056,156.65,156.57,1.27707875]
[1727705936990,1.10378056,156.65,156.59,15.4917]
[1727705937196,15.9578,156.67,156.6,1.2769109]
[1727705937488,1.10405485,156.68,156.6,1.2769109]
[1727705937672,6.3832,156.66,156.6,7.6622109]
[1727705937868,6.3837,156.65,156.6,1.2769109]
[1727705939487,18.65641564,156.68,156.59,15.4917]
[1727705940088,1.10405485,156.68,156.6,1.27694224]
[1727705940295,1.10405485,156.68,156.63,6.3843]
[1727705940492,6.3816,156.7,156.64,17.0378054]
[1727705940793,6.3824,156.68,156.64,15.7612]
[1727705941173,6.3832,156.66,156.64,15.7612]
[1727705941376,6.3829,156.67,156.64,15.7612]
[1727705942580,15.9528,156.72,156.64,15.7612]
[1727705942785,6.3832,156.66,156.64,15.7612]
[1727705943293,6.3836,156.65,156.64,15.7612]
[1727705943590,6.3845,156.63,156.6,15.1891]
[1727705945182,6.3841,156.64,156.6,15.1891]
[1727705946004,6.3845,156.63,156.6,15.1891]
[1727705946171,6.3852,156.61,156.6,15.1891]
[1727705946374,15.9548,156.7,156.6,15.1891]
[1727705946596,6.3824,156.68,156.6,16.46625745]
[1727705946799,6.3829,156.67,156.6,15.1891]
[1727705946982,1.59587074,156.66,156.6,15.1891]
[1727705947174,6.3836,156.65,156.6,15.1891]
[1727705947391,1.59603161,156.7,156.6,15.1891]
[1727705947695,3.29957202,156.72,156.6,15.1891]
[1727705947696,6.3845,156.63,156.6,15.1891]
[1727705948001,38.93920997,156.73,156.6,15.1891]
[1727705948002,6.3849,156.62,156.6,15.1891]
[1727705948501,15.9577,156.67,156.6,15.1891]
[1727705948801,15.9542,156.7,156.61,1.27693802]
[1727705949380,6.3836,156.66,156.61,1.27693802]
[1727705949773,3.29957202,156.72,156.61,1.27693802]
[1727705949774,6.3827,156.68,156.61,7.66203802]
[1727705950298,6.3832,156.67,156.6,37.5382]
[1727705950888,6.3833,156.66,156.6,37.5382]
[1727705951676,9.91729282,156.72,156.6,15.1891]
[1727705951883,6.384,156.64,156.6,15.1891]
[1727705952290,15.9559,156.69,156.6,15.1891]
[1727705952496,6.3846,156.63,156.6,15.1891]
[1727705952698,6.3849,156.62,156.6,15.1891]
[1727705952894,1.5963818,156.66,156.6,15.1891]
[1727705953200,6.3852,156.61,156.6,15.1891]
[1727705953796,15.9599,156.65,156.57,6.6203]
[1727705954001,15.9599,156.65,156.56,15.838]
[1727705954002,6.3858,156.6,156.56,15.838]
[1727705954301,6.3858,156.6,156.57,1.27725584]
[1727705954607,1.59657355,156.59,156.56,15.838]
[1727705954805,6.3865,156.58,156.56,15.838]
[1727705955504,6.3869,156.57,156.56,15.838]
[1727705956410,15.9649,156.6,156.53,6.5102]
[1727705957812,15.9649,156.6,156.52,15.0767]
[1727705957981,6.3878,156.55,156.52,15.0767]
[1727705959413,15.9649,156.6,156.52,16.35431384]
[1727705959414,6.3874,156.56,156.52,16.35431384]
[1727705960287,15.9649,156.6,156.52,16.35431384]
[1727705960500,6.3878,156.55,156.52,15.0767]
[1727705960699,6.3882,156.54,156.52,15.0767]
[1727705961100,6.3885,156.53,156.49,6.3066]
[1727705961404,6.3885,156.53,156.48,31.0197]
[1727705961405,6.3896,156.51,156.48,15.0437]
[1727705961609,6.3894,156.51,156.48,15.0437]
[1727705961998,6.3898,156.5,156.48,15.0437]
[1727705962188,6.3906,156.48,156.45,6.2247]
[1727705962514,6.3902,156.49,156.43,22.4714]
[1727705962810,6.3897,156.5,156.44,7.67041578]
[1727705962989,6.3897,156.5,156.45,6.3917]
[1727705963613,6.3894,156.51,156.45,6.3917]
[1727705964113,17.56884753,156.54,156.44,15.9801]
[1727705964288,1.5976986,156.53,156.43,22.4716]
[1727705964489,6.3906,156.48,156.43,16.0791]
[1727705964705,51.1449,156.57,156.43,16.0791]
[1727705964706,51.1449,156.57,156.44,1.27823513]
[1727705965012,51.1449,156.57,156.43,16.0791]
[1727705965013,6.391,156.47,156.43,16.0791]
[1727705965207,6.391,156.47,156.43,17.35741433]
[1727705965516,15.9729,156.52,156.43,16.0791]
[1727705965810,6.3906,156.48,156.44,1.27832862]
[1727705966013,6.3906,156.48,156.43,16.0791]
[1727705966391,6.3906,156.48,156.44,1.27824997]
[1727705966592,6.3902,156.49,156.44,1.27824997]
[1727705967420,15.9729,156.52,156.44,1.27824997]
[1727705967624,15.9729,156.52,156.44,6.3921]
[1727705967800,6.3902,156.49,156.44,6.3921]
[1727705969994,6.3902,156.49,156.45,1.27812972]
[1727705970508,6.3898,156.5,156.46,2.18196194]
[1727705971204,6.3894,156.51,156.46,2.18196194]
[1727705971992,6.3889,156.52,156.46,2.18196194]
[1727705972195,6.68710432,156.54,156.46,0.9038638]
[1727705972196,6.3894,156.51,156.46,0.9038638]
[1727705972502,6.3907,156.48,156.46,0.9038638]
[1727705973203,6.391,156.47,156.46,0.9038638]
[1727705975002,7.98908866,156.47,156.46,0.9038638]
[1727705975209,6.391,156.47,156.46,0.9038638]
[1727705976809,7.98908523,156.47,156.46,0.9038638]
[1727705976995,6.391,156.47,156.46,0.9038638]
[1727705977697,7.98899904,156.47,156.46,0.9038638]
[1727705979920,7.98908368,156.47,156.46,0.9038638]
[1727705980614,6.391,156.47,156.46,0.9038638]
[1727705981208,7.49562919,156.47,156.46,0.9038638]
[1727705982423,14.18831466,156.47,156.46,0.9038638]
[1727705985519,15.78645367,156.47,156.46,0.9038638]
[1727705986022,14.18831466,156.47,156.46,0.9038638]
[1727705988329,15.78654081,156.47,156.46,0.9038638]
[1727705988501,14.18831466,156.47,156.46,0.9038638]
[1727705989208,15.78654212,156.47,156.39,15.937]
[1727705989416,6.3938,156.4,156.39,15.937]
[1727705989734,15.9819,156.43,156.33,6.3966]
[1727705989735,6.3949,156.38,156.35,15.8396]
[1727705990034,6.395,156.37,156.35,15.8396]
[1727705991919,6.3944,156.39,156.35,15.8396]
[1727705992239,6.3939,156.4,156.35,15.8396]
[1727705992925,6.3944,156.39,156.35,15.8396]
[1727705995741,22.6739987,156.44,156.35,15.8396]
[1727705995917,6.3938,156.4,156.35,22.2354]
[1727705997840,6.3938,156.4,156.36,1.6311226]
[1727705998139,15.9806,156.44,156.36,1.6311226]
[1727705998140,6.3935,156.41,156.36,8.0265226]
[1727705998940,6.3935,156.41,156.36,6.747716]
[1727705999239,15.9806,156.44,156.36,0.352316]
[1727705999422,6.3938,156.4,156.36,0.352316]
[1727705999928,15.9806,156.44,156.36,0.352316]
[1727706000128,6.3943,156.39,156.36,0.352316]
[1727706000817,15.9806,156.44,156.36,0.352316]
[1727706001018,1.59852117,156.43,156.36,0.352316]
[1727706001246,6.3945,156.39,156.36,0.352316]
[1727706001432,6.3947,156.38,156.36,0.352316]
[1727706002048,6.3944,156.39,156.36,0.352316]
[1727706004352,6.3947,156.38,156.36,0.352316]
[1727706004528,6.395,156.37,156.36,0.352316]
[1727706006440,6.3959,156.35,156.34,0.1694831]
[1727706009440,7.99519919,156.35,156.34,0.1694831]
[1727706010036,1.59929919,156.35,156.27,16.0922]
[1727706010243,6.3975,156.31,156.27,16.0922]
[1727706011975,19.21,156.42,156.28,1.27962553]
[1727706012145,17.42799635,156.43,156.31,1.27931267]
[1727706012453,6.3958,156.36,156.31,6.3972]
[1727706012665,33.40999635,156.43,156.32,16.51369997]
[1727706012827,6.3946,156.38,156.33,6.3964]
[1727706013029,6.3946,156.38,156.34,1.2790908]
[1727706013440,6.3943,156.39,156.34,7.6753908]
[1727706013649,6.3943,156.39,156.34,6.3963]
[1727706013863,29.63362081,156.43,156.32,15.2345]
[1727706013864,6.3947,156.38,156.32,21.6312]
[1727706014132,6.3943,156.39,156.32,15.2345]
[1727706014334,6.3943,156.39,156.34,6.3962]
[1727706015260,22.95366132,156.43,156.35,7.67484115]
[1727706015261,6.394,156.4,156.35,7.67484115]
[1727706015464,1.10499635,156.43,156.36,1.27891124]
[1727706015752,6.3934,156.42,156.36,6.3954]
[1727706016634,7.49759635,156.43,156.37,7.67374768]
[1727706017037,6.3932,156.42,156.35,6.3955]
[1727706017635,6.3932,156.42,156.36,6.3954]
[1727706017836,6.3932,156.42,156.36,7.67413941]
[1727706018143,6.3934,156.41,156.36,6.3954]
[1727706020038,1.10499635,156.43,156.37,1.27873796]
[1727706020243,6.3931,156.42,156.38,16.4713]
[1727706020851,1.10499635,156.43,156.36,16.4713]
[1727706020852,6.395,156.38,156.36,16.4713]
[1727706021160,6.395,156.37,156.36,16.4713]
[1727706021462,1.10499635,156.43,156.36,16.4713]
[1727706021837,6.3942,156.39,156.37,1.27903989]
[1727706022131,6.3933,156.42,156.37,7.67385264]
[1727706022358,6.3934,156.41,156.37,1.27885264]
[1727706023236,1.10499635,156.43,156.37,1.27885264]
[1727706023436,1.10499635,156.43,156.38,6.0276]
[1727706023663,1.10499635,156.43,156.39,7.67278981]
[1727706024036,7.49769635,156.43,156.39,1.27858981]
[1727706024260,1.10499635,156.43,156.4,1.27851296]
[1727706024561,6.3931,156.42,156.4,1.27877399]
[1727706024767,6.3931,156.42,156.37,13.0563]
[1727706024948,7.49769635,156.43,156.38,6.3945]
[1727706025947,6.393,156.42,156.37,13.0563]
[1727706026264,6.393,156.42,156.38,6.3946]
[1727706026562,7.49769635,156.43,156.38,6.3946]
[1727706026761,1.10499635,156.43,156.37,6.6614]
[1727706026948,6.393,156.42,156.37,13.0564]
[1727706028543,6.393,156.42,156.38,6.3946]
[1727706028868,1.10499635,156.43,156.39,1.27856941]
[1727706029066,1.10499635,156.43,156.4,16.3174]
[1727706029236,1.10499635,156.43,156.41,1.27841051]
[1727706029443,1.10499635,156.43,156.42,7.67139891]
[1727706029648,1.10499635,156.43,156.42,6.393]
[1727706031556,1.10499635,156.43,156.4,32.3015]
[1727706032875,1.10499635,156.43,156.4,38.6953]
[1727706033969,7.49759635,156.43,156.4,16.3174]
[1727706034664,1.10499635,156.43,156.4,16.3174]
[1727706035236,6.3933,156.42,156.4,16.3174]
[1727706035860,6.3934,156.41,156.4,16.3174]
[1727706036068,6.3934,156.41,156.38,1.27880707]
[1727706036248,1.10499635,156.43,156.38,7.67330707]
[1727706036563,7.49769635,156.43,156.38,7.67330707]
[1727706036760,7.49769635,156.43,156.38,6.3945]
[1727706037264,7.49769635,156.43,156.39,6.3942]
[1727706039472,6.3934,156.42,156.37,29.0433]
[1727706040272,6.3935,156.41,156.37,29.0433]
[1727706040445,6.3935,156.41,156.38,1.27865682]
[1727706041072,6.3935,156.41,156.37,29.0433]
[1727706042371,6.3935,156.41,156.37,22.6486]
[1727706042942,6.3943,156.39,156.36,15.5094]
[1727706043148,2.70347006,156.43,156.36,15.5094]
[1727706043358,6.3949,156.38,156.36,15.5094]
[1727706044075,6.395,156.37,156.32,22.4577]
[1727706044277,6.3947,156.38,156.33,6.3966]
[1727706044455,6.3943,156.39,156.34,7.67505345]
[1727706045567,6.3935,156.41,156.36,6.3951]
[1727706046579,7.26529635,156.43,156.36,6.3951]
[1727706046747,6.3939,156.4,156.36,6.3951]
[1727706047363,1.10499635,156.43,156.37,6.395]
[1727706047873,1.10499635,156.43,156.35,15.9891]
[1727706047874,6.3939,156.4,156.35,22.3848]
[1727706048592,1.10499635,156.43,156.35,22.3848]
[1727706048962,6.3939,156.4,156.35,22.3848]
[1727706049574,6.3934,156.41,156.36,7.67404593]
[1727706049762,6.3934,156.41,156.36,6.3953]
[1727706051983,1.10499635,156.43,156.32,16.061]
[1727706052190,6.3931,156.42,156.38,6.3945]
[1727706056303,6.3946,156.38,156.34,22.3863]
[1727706056966,6.3952,156.37,156.32,22.458]
[1727706057470,6.3947,156.38,156.33,6.3966]
[1727706060981,27.74036272,156.41,156.32,16.061]
[1727706061194,1.59894492,156.4,156.3,0.8422591]
[1727706061417,6.3974,156.32,156.3,0.8422591]
[1727706062273,1.59927174,156.36,156.3,0.8422591]
[1727706062473,6.3975,156.31,156.3,0.8422591]
[1727706063475,6.584,156.35,156.3,0.8422591]
[1727706063684,15.9886,156.37,156.3,0.8422591]
[1727706063885,6.396,156.35,156.3,7.2401591]
[1727706064576,1.59908114,156.36,156.3,7.2401591]
[1727706064893,1.59908114,156.36,156.3,0.8422591]
[1727706065194,6.3972,156.32,156.3,0.8422591]
[1727706065703,15.9886,156.37,156.3,0.8422591]
[1727706065892,6.3971,156.32,156.3,0.8422591]
[1727706066774,1.59933771,156.36,156.3,0.8422591]
[1727706068186,6.3972,156.32,156.3,0.8422591]
[1727706068998,6.3975,156.31,156.3,0.8422591]
[1727706069779,15.9886,156.37,156.3,0.8422591]
[1727706069979,6.3968,156.33,156.3,0.8422591]
[1727706071099,6.397,156.33,156.3,0.8422591]
[1727706071284,1.59924296,156.36,156.3,0.8422591]
[1727706072098,6.3968,156.33,156.3,0.8422591]
[1727706073682,1.59916666,156.36,156.3,0.8422591]
[1727706073986,6.3971,156.32,156.3,0.8422591]
[1727706076685,6.3966,156.34,156.3,0.8422591]
[1727706077075,6.3967,156.33,156.3,0.8422591]
[1727706081108,6.396,156.35,156.31,7.67670663]
[1727706084015,22.1917,156.4,156.32,1.27917736]
[1727706084186,22.1917,156.4,156.33,6.3967]
[1727706084187,6.3951,156.37,156.33,6.3967]
[1727706084509,6.3951,156.37,156.34,1.27909237]
[1727706085585,6.3951,156.37,156.35,1.27908307]
[1727706085781,6.3951,156.37,156.33,6.3966]
[1727706086203,6.3949,156.38,156.34,7.67502186]
[1727706086383,6.3941,156.4,156.36,6.3954]
[1727706086589,6.3941,156.4,156.37,1.27882299]
[1727706087511,6.3941,156.4,156.36,23.0365]
[1727706088885,1.10445814,156.45,156.37,15.9874]
[1727706089996,6.3927,156.43,156.38,6.3943]
[1727706090529,6.3931,156.42,156.37,15.9874]
[1727706090697,6.3937,156.41,156.37,22.3823]
[1727706091436,2.70261643,156.45,156.37,15.9874]